bitfinex/quotes_SOLUSD_20240813
["timestamp","ask_amount","ask_price","bid_price","bid_amount"]
[1723526955316,29.1841,146.0,145.93,0.50196]
[1723526955503,29.1841,146.0,145.93,1.87217695]
[1723526955704,29.1841,146.0,145.93,0.50196]
[1723526956100,29.1841,146.0,145.93,1.87202898]
[1723526956306,16.5241,146.0,145.93,1.87202898]
[1723526956829,16.5241,146.0,145.93,0.50196]
[1723526957129,16.5241,146.0,145.93,1.87202045]
[1723526957333,12.66,146.01,145.95,0.12549]
[1723526957632,19.5079,146.03,145.95,45.50196]
[1723526958839,12.66,146.01,145.95,45.50196]
[1723526959535,19.5089,146.01,145.95,45.50196]
[1723526964131,12.66,146.01,145.95,45.50196]
[1723526965131,12.66,146.01,145.96,1.37006167]
[1723526965934,12.66,146.01,145.95,45.50196]
[1723526968734,12.66,146.01,145.96,1.37006199]
[1723526968919,12.66,146.01,145.95,45.50196]
[1723526969820,12.66,146.01,145.96,1.37006073]
[1723526970019,2.75223152,146.06,145.98,15.5317]
[1723526970226,12.66,146.1,145.99,78.16196]
[1723526970428,12.66,146.1,146.01,12.78549]
[1723526970647,12.66,146.1,146.03,0.12549]
[1723526972327,19.5047,146.1,146.03,0.12549]
[1723526972523,12.66,146.11,146.04,15.2961]
[1723526972729,15.3165,146.15,146.05,46.87096704]
[1723526972730,12.66,146.13,146.05,46.87096704]
[1723526974050,6.8431,146.14,146.06,6.4329]
[1723526974247,12.66,146.13,146.08,0.12549]
[1723526974422,12.66,146.13,146.08,1.49436447]
[1723526974624,12.66,146.13,146.09,0.37647]
[1723526975335,12.66,146.14,146.1,0.12549]
[1723526975626,12.66,146.14,146.1,1.49422269]
[1723526975960,16.1337,146.19,146.11,0.12549]
[1723526976116,6.8408,146.19,146.11,0.12549]
[1723526976317,19.5007,146.19,146.13,0.12549]
[1723526976720,32.19442361,146.21,146.13,46.87037636]
[1723526976953,12.66,146.18,146.13,46.87037636]
[1723526977959,12.66,146.16,146.12,16.6002]
[1723526978250,12.66,146.16,146.11,0.12549]
[1723526978553,12.66,146.16,146.11,45.50196]
[1723526979029,12.66,146.16,146.11,0.50196]
[1723526979628,12.66,146.16,146.1,6.4503]
[1723526979857,12.66,146.12,146.06,6.3584]
[1723526981131,12.66,146.12,146.07,0.12549]
[1723526981465,12.66,146.12,146.07,45.12549]
[1723526982259,12.66,146.12,146.08,1.36888142]
[1723526982459,12.66,146.12,146.07,45.12549]
[1723526982657,12.66,146.12,146.08,0.25098]
[1723526982871,12.66,146.12,146.09,0.12549]
[1723526987149,6.8428,146.14,146.09,0.12549]
[1723526987350,19.5028,146.14,146.09,0.12549]
[1723526987545,6.8432,146.13,146.09,0.12549]
[1723526987750,12.66,146.12,146.09,0.12549]
[1723526988452,6.8428,146.14,146.09,0.12549]
[1723526988654,32.8856,146.19,146.09,0.12549]
[1723526988655,12.66,146.13,146.09,0.12549]
[1723526989445,12.66,146.16,146.09,0.12549]
[1723526989651,12.66,146.16,146.1,0.12549]
[1723526989957,12.66,146.16,146.1,0.37647]
[1723526990140,12.66,146.16,146.11,0.12549]
[1723526990466,12.66,146.16,146.12,0.12549]
[1723526990643,12.66,146.16,146.12,0.37647]
[1723526991844,12.66,146.16,146.13,0.12549]
[1723526993569,12.66,146.16,146.12,0.37647]
[1723526994142,19.5018,146.16,146.12,0.37647]
[1723526994338,12.66,146.14,146.09,45.0]
[1723526994547,12.66,146.14,146.1,0.25098]
[1723526994747,12.66,146.14,146.09,0.25098]
[1723526995774,19.5027,146.14,146.09,0.25098]
[1723526997671,12.66,146.14,146.09,0.25098]
[1723526997869,12.66,146.12,146.09,0.12549]
[1723526998068,12.66,146.12,146.06,6.3584]
[1723526998069,19.5037,146.12,146.06,6.3584]
[1723526998249,12.66,146.12,146.06,6.3584]
[1723526998445,19.5038,146.12,146.06,6.3584]
[1723526998660,12.66,146.12,146.06,6.3584]
[1723526999470,12.66,146.12,146.07,0.12549]
[1723526999668,19.5037,146.12,146.07,0.12549]
[1723526999973,12.66,146.12,146.07,0.12549]
[1723527000282,6.8423,146.15,146.07,46.87105746]
[1723527000447,12.66,146.13,146.07,46.87105746]
[1723527000844,12.66,146.15,146.07,46.87105746]
[1723527001538,6.8413,146.18,146.07,46.87105746]
[1723527001743,12.66,146.16,146.09,0.12549]
[1723527001970,12.66,146.16,146.09,45.37647]
[1723527002177,12.66,146.16,146.1,0.12549]
[1723527002354,12.66,146.16,146.1,0.25098]
[1723527002747,12.66,146.16,146.11,0.25098]
[1723527002948,19.5018,146.16,146.11,0.25098]
[1723527003255,19.5018,146.16,146.1,0.25098]
[1723527003974,12.66,146.14,146.09,0.12549]
[1723527004473,12.66,146.16,146.1,0.12549]
[1723527004638,19.5019,146.16,146.1,0.25098]
[1723527004843,6.8423,146.15,146.09,0.12549]
[1723527005062,12.66,146.16,146.09,0.25098]
[1723527005253,19.5021,146.16,146.1,0.12549]
[1723527005565,12.66,146.14,146.1,0.12549]
[1723527005749,12.66,146.12,146.09,0.25098]
[1723527006750,6.8428,146.14,146.09,0.25098]
[1723527006967,19.5028,146.14,146.09,0.25098]
[1723527007168,12.66,146.14,146.09,0.25098]
[1723527009647,6.8423,146.15,146.09,0.25098]
[1723527009853,12.66,146.14,146.09,0.25098]
[1723527010050,19.5018,146.16,146.11,0.12549]
[1723527010758,19.5019,146.16,146.11,0.12549]
[1723527011210,6.8423,146.15,146.1,0.12549]
[1723527011490,6.8423,146.15,146.09,0.37647]
[1723527011776,12.66,146.16,146.1,0.12549]
[1723527011966,19.5018,146.16,146.1,0.12549]
[1723527012351,19.5018,146.16,146.11,0.12549]
[1723527012869,6.8423,146.15,146.11,0.25098]
[1723527013076,6.8423,146.15,146.11,0.12549]
[1723527013389,6.8437,146.12,146.06,6.3584]
[1723527013547,12.66,146.12,146.06,6.3584]
[1723527013959,19.5041,146.12,146.06,6.3584]
[1723527014478,6.8442,146.11,146.06,6.3584]
[1723527015008,12.66,146.1,146.06,6.3584]
[1723527015878,12.66,146.1,146.07,0.12549]
[1723527016781,20.0,146.17,146.07,46.87107428]
[1723527016996,19.5018,146.16,146.07,46.87107428]
[1723527017150,18.55916587,146.19,146.09,0.12549]
[1723527017478,19.5004,146.19,146.11,0.12549]
[1723527017676,19.5004,146.19,146.11,45.50196]
[1723527017863,6.8404,146.19,146.13,0.12549]
[1723527018066,6.8404,146.19,146.13,0.50196]
[1723527018490,6.8411,146.18,146.13,0.12549]
[1723527018783,6.8411,146.18,146.11,45.0]
[1723527018784,6.8411,146.18,146.12,1.87047098]
[1723527019079,6.8414,146.17,146.12,0.50196]
[1723527020563,31.51,146.18,146.12,0.12549]
[1723527020765,31.51,146.16,146.11,0.37647]
[1723527020974,6.8432,146.13,146.1,6.0041]
[1723527021160,6.8432,146.13,146.08,15.9808]
[1723527021161,31.51,146.14,146.08,15.9808]
[1723527021573,6.8432,146.13,146.08,15.9808]
[1723527022173,31.51,146.16,146.09,1.36894289]
[1723527022383,47.1517,146.18,146.09,1.36894289]
[1723527022756,47.1517,146.18,146.1,0.25098]
[1723527023086,47.1517,146.18,146.11,0.25098]
[1723527023293,6.8409,146.18,146.12,6.30869]
[1723527023785,6.8409,146.18,146.13,1.61947713]
[1723527024283,6.8409,146.18,146.12,6.30869]
[1723527024449,6.8405,146.19,146.13,45.37647]
[1723527024653,26.8409,146.18,146.13,45.37647]
[1723527024871,20.0,146.18,146.14,0.12549]
[1723527025262,26.8409,146.18,146.14,0.12549]
[1723527026563,6.8413,146.17,146.13,0.12549]
[1723527027482,6.8419,146.16,146.13,0.12549]
[1723527027686,6.8414,146.17,146.13,0.12549]
[1723527029461,6.8418,146.16,146.13,0.12549]
[1723527030393,6.8418,146.16,146.12,6.1832]
[1723527030686,6.8418,146.16,146.12,5.6832]
[1723527030894,31.51,146.16,146.05,10.11495997]
[1723527031061,31.51,146.16,146.04,10.11495997]
[1723527031262,6.8432,146.13,146.04,10.11495997]
[1723527031483,6.8437,146.12,146.03,10.11495997]
[1723527031964,6.8433,146.13,146.03,10.11495997]
[1723527032424,31.51,146.14,146.03,10.11495997]
[1723527032578,38.3528,146.14,146.03,10.12253978]
[1723527032967,31.51,146.14,146.03,10.12257059]
[1723527033285,38.353,146.14,146.03,10.12257059]
[1723527033665,38.353,146.14,146.09,0.12549]
[1723527033865,6.8432,146.13,146.09,0.12549]
[1723527034658,31.51,146.14,146.08,22.5435]
[1723527034992,6.8437,146.12,146.08,22.5435]
[1723527035991,38.3531,146.14,146.08,22.5435]
[1723527036195,31.51,146.14,146.09,1.36893412]
[1723527036491,38.3518,146.16,146.1,0.25098]
[1723527036674,20.0,146.15,146.1,0.25098]
[1723527036872,38.3518,146.16,146.1,0.25098]
[1723527037572,38.3518,146.16,146.11,1.36870283]
[1723527037774,38.3518,146.16,146.1,46.61968283]
[1723527037987,6.8424,146.15,146.11,0.25098]
[1723527039665,6.8424,146.15,146.1,0.25098]
[1723527039865,6.8432,146.13,146.08,22.5435]
[1723527040084,6.8428,146.14,146.08,22.5435]
[1723527040564,6.8423,146.15,146.09,1.36891825]
[1723527040970,31.51,146.16,146.09,1.36891825]
[1723527041186,38.3519,146.16,146.1,0.12549]
[1723527041385,31.51,146.16,146.1,1.49419625]
[1723527041686,6.8425,146.15,146.1,0.12549]
[1723527041865,33.16626005,146.16,146.09,0.37647]
[1723527042063,31.51,146.16,146.09,0.37647]
[1723527042265,6.8427,146.14,146.09,1.74535102]
[1723527042675,6.8423,146.15,146.1,0.12549]
[1723527042880,38.3518,146.16,146.1,0.12549]
[1723527044075,6.8414,146.17,146.1,0.12549]
[1723527044372,31.51,146.18,146.1,0.12549]
[1723527044570,20.0,146.17,146.1,0.12549]
[1723527044770,26.8414,146.17,146.1,0.12549]
[1723527046398,31.51,146.18,146.11,0.12549]
[1723527046703,31.51,146.18,146.11,46.74490944]
[1723527046866,31.51,146.18,146.12,0.12549]
[1723527047062,0.8299583,146.2,146.12,0.12549]
[1723527047063,0.8299583,146.2,146.14,0.12549]
[1723527047287,0.8299583,146.2,146.14,45.50196]
[1723527048304,0.8299583,146.2,146.18,15.3746]
[1723527048596,0.8299583,146.2,146.19,0.50196]
[1723527049093,0.8299583,146.2,146.18,15.3746]
[1723527050500,7.6700583,146.2,146.17,6.36908]
[1723527050672,0.8299583,146.2,146.17,6.1181]
[1723527051272,0.8299583,146.2,146.18,0.25098]
[1723527051488,0.8299583,146.2,146.17,7.61162029]
[1723527051679,0.8299583,146.2,146.17,6.24359]
[1723527052083,7.6698583,146.2,146.17,6.1181]
[1723527052274,6.8405,146.19,146.15,0.12549]
[1723527052480,31.51,146.17,146.13,6.6336]
[1723527052988,38.3517,146.17,146.13,6.6336]
[1723527053190,6.8418,146.16,146.13,6.6336]
[1723527053391,31.51,146.17,146.1,16.4826]
[1723527053773,6.8427,146.14,146.1,16.4826]
[1723527053997,31.51,146.15,146.1,17.85137443]
[1723527054275,38.3523,146.15,146.1,16.4826]
[1723527054494,31.51,146.15,146.05,31.98366422]
[1723527054675,31.51,146.15,146.06,1.36892053]
[1723527054991,6.8431,146.14,146.05,21.8685]
[1723527055169,38.3522,146.15,146.06,20.0]
[1723527055489,31.51,146.15,146.06,20.0]
[1723527055689,31.51,146.15,146.07,0.25098]
[1723527055900,38.3522,146.15,146.08,0.25098]
[1723527056205,6.8428,146.14,146.09,0.37647]
[1723527056386,6.8432,146.13,146.09,0.12549]
[1723527056589,6.8432,146.13,146.08,0.25098]
[1723527057507,6.8436,146.12,146.08,0.25098]
[1723527057705,6.8433,146.13,146.08,0.25098]
[1723527057908,6.8421,146.16,146.1,0.12549]
[1723527058085,26.8423,146.15,146.1,0.25098]
[1723527058409,26.8423,146.15,146.1,0.12549]
[1723527058704,20.0,146.15,146.1,0.12549]
[1723527058878,38.3514,146.17,146.1,0.12549]
[1723527059080,38.3514,146.17,146.1,45.25098]
[1723527059297,20.0,146.16,146.11,0.25098]
[1723527059473,20.0,146.16,146.12,0.12549]
[1723527060306,26.8418,146.16,146.12,0.12549]
[1723527061213,6.8424,146.15,146.09,6.2504]
[1723527061579,6.8428,146.14,146.09,6.2504]
[1723527061908,31.51,146.15,146.09,6.2504]
[1723527062079,20.0,146.16,146.1,1.36886844]
[1723527062276,20.8299583,146.2,146.09,6.2504]
[1723527062505,31.51,146.19,146.11,0.12549]
[1723527062683,20.0,146.18,146.11,0.37647]
[1723527062878,20.0,146.18,146.12,0.12549]
[1723527063083,26.8408,146.18,146.12,0.37647]
[1723527063301,26.8408,146.18,146.13,0.12549]
[1723527063526,26.8408,146.18,146.13,0.37647]
[1723527063890,20.0,146.18,146.13,0.37647]
[1723527064219,26.8409,146.18,146.13,0.37647]
[1723527064505,20.0,146.18,146.12,0.12549]
[1723527064712,31.51,146.17,146.12,0.37647]
[1723527065498,31.51,146.17,146.1,16.4728]
[1723527065806,6.8431,146.14,146.1,16.4728]
[1723527066106,31.51,146.15,146.1,16.4728]
[1723527066616,6.8418,146.16,146.1,16.4728]
[1723527067622,31.51,146.17,146.1,16.4728]
[1723527067907,31.51,146.15,146.09,6.2504]
[1723527068081,38.3527,146.15,146.09,6.2504]
[1723527068888,6.8428,146.14,146.09,6.2504]
[1723527069804,38.3523,146.15,146.09,6.2504]
[1723527070184,31.51,146.15,146.1,1.36881308]
[1723527070405,38.3513,146.17,146.11,1.36876673]
[1723527070596,38.3513,146.17,146.12,0.12549]
[1723527070799,6.8413,146.17,146.12,0.25098]
[1723527071515,6.8406,146.19,146.13,0.12549]
[1723527071689,26.8409,146.18,146.13,0.25098]
[1723527071892,20.0,146.18,146.13,1.61948613]
[1723527072095,20.0,146.18,146.14,0.25098]
[1723527073819,26.8409,146.18,146.14,0.25098]
[1723527074694,51.51,146.18,146.13,15.41249]
[1723527074904,6.8419,146.16,146.13,15.287]
[1723527075200,6.8413,146.17,146.13,15.287]
[1723527075606,31.51,146.18,146.13,15.287]
[1723527075787,6.8407,146.19,146.14,0.37647]
[1723527076100,26.8409,146.18,146.14,0.37647]
[1723527078314,6.8405,146.19,146.15,0.12549]
[1723527078523,32.3399583,146.2,146.14,0.37647]
[1723527078817,20.0,146.19,146.14,0.37647]
[1723527078994,6.8412,146.18,146.14,0.37647]
[1723527079915,6.8414,146.17,146.14,0.37647]
[1723527080109,6.8414,146.17,146.14,0.12549]
[1723527080313,8.49766005,146.17,146.14,0.12549]
[1723527080639,20.0,146.19,146.08,16.1824]
[1723527080640,6.8428,146.14,146.08,16.1824]
[1723527080997,31.51,146.16,146.08,16.1824]
[1723527081198,6.8423,146.15,146.08,16.1824]
[1723527081903,6.8423,146.15,146.1,0.37647]
[1723527082106,6.8423,146.15,146.11,0.12549]
[1723527082328,38.3518,146.16,146.11,0.12549]
[1723527083631,6.8425,146.15,146.1,0.25098]
[1723527084291,31.51,146.18,146.1,1.61975783]
[1723527084491,26.8414,146.17,146.11,0.12549]
[1723527084700,26.8414,146.17,146.11,0.25098]
[1723527085617,6.8418,146.16,146.11,0.25098]
[1723527085797,6.8418,146.16,146.11,0.12549]
[1723527086002,6.8418,146.16,146.1,1.6197161]
[1723527086397,6.8418,146.16,146.11,0.12549]
[1723527086591,6.8418,146.16,146.1,1.61966591]
[1723527086794,6.8423,146.15,146.1,0.25098]
[1723527088517,6.8418,146.16,146.1,0.25098]
[1723527088824,6.8418,146.16,146.1,1.61971698]
[1723527089195,26.8414,146.17,146.1,1.61971698]
[1723527089522,6.8418,146.16,146.1,0.25098]
[1723527089695,6.8423,146.15,146.1,0.25098]
[1723527089896,6.8423,146.15,146.1,0.12549]
[1723527090317,6.8419,146.16,146.1,1.74527902]
[1723527090651,26.8414,146.17,146.1,1.74527902]
[1723527091319,26.8414,146.17,146.11,0.12549]
[1723527091541,26.8414,146.17,146.12,0.12549]
[1723527091694,26.8414,146.17,146.12,0.37647]
[1723527092103,6.8421,146.16,146.12,0.12549]
[1723527092304,6.8422,146.15,146.11,0.12549]
[1723527092514,6.8427,146.14,146.09,6.2504]
[1723527093202,31.51,146.14,146.09,6.2504]
[1723527093529,31.51,146.1,146.06,10.08960013]
[1723527093728,38.3547,146.1,146.06,10.08960013]
[1723527094030,38.3547,146.1,146.04,16.3488]
[1723527095702,31.51,146.1,146.04,16.3488]
[1723527095929,45.0,146.13,146.01,6.2802]
[1723527095930,31.51,146.08,146.01,6.2802]
[1723527096104,38.3569,146.06,146.01,6.2802]
[1723527096425,31.51,146.08,146.01,7.64986564]
[1723527096733,6.8461,146.07,146.01,6.2802]
[1723527097309,6.8461,146.07,146.02,0.12549]
[1723527097712,6.8465,146.06,146.01,6.2802]
[1723527098198,31.51,146.08,146.01,6.2802]
[1723527098199,6.847,146.05,146.01,6.2802]
[1723527098397,38.357,146.05,146.01,6.2802]
[1723527098816,31.51,146.08,146.01,6.2802]
[1723527098817,6.8464,146.07,146.01,6.2802]
[1723527099017,20.0,146.06,146.01,6.2802]
[1723527099806,26.8465,146.06,146.01,6.2802]
[1723527100529,6.8469,146.05,146.01,6.2802]
[1723527108027,12.63,146.03,145.97,6.4159]
[1723527108205,19.4788,146.01,145.97,6.4159]
[1723527108414,19.4788,146.01,145.95,16.0555]
[1723527108415,6.8493,146.0,145.95,16.0555]
[1723527108617,12.63,145.99,145.95,16.0555]
[1723527109310,19.4799,145.99,145.91,16.4957]
[1723527109512,15.3698,146.03,145.91,16.4957]
[1723527109513,6.8513,145.96,145.91,16.4957]
[1723527109744,12.63,145.95,145.91,16.4957]
[1723527109921,31.62,145.96,145.89,6.4159]
[1723527110121,6.852,145.95,145.89,6.4159]
[1723527110308,6.8527,145.93,145.89,6.4159]
[1723527112135,6.8532,145.92,145.85,6.2768]
[1723527112624,6.8537,145.91,145.85,6.2768]
[1723527112829,6.8531,145.92,145.85,6.2768]
[1723527113635,6.8515,145.96,145.86,1.37098351]
[1723527113937,31.62,145.98,145.86,65.0]
[1723527114152,6.8503,145.98,145.87,32.99056891]
[1723527114330,20.0,145.97,145.88,45.0]
[1723527114626,20.0,145.97,145.89,1.37051856]
[1723527114830,20.0,145.97,145.9,1.74698527]
[1723527115031,20.0,145.97,145.91,0.12549]
[1723527115358,20.0,145.97,145.91,16.48269]
[1723527115527,26.8507,145.97,145.91,16.48269]
[1723527115936,26.8507,145.97,145.92,0.12549]
[1723527115937,20.0,145.97,145.92,0.12549]
[1723527116120,20.0,145.97,145.92,51.93517]
[1723527116943,6.8498,145.99,145.92,51.93517]
[1723527117326,6.8498,145.99,145.92,53.30557685]
[1723527117639,6.8503,145.98,145.92,53.30557685]
[1723527117836,6.8503,145.98,145.92,51.93517]
[1723527119236,31.62,146.0,145.92,6.68419]
[1723527119439,33.27626005,146.0,145.92,6.5587]
[1723527119624,6.8512,145.96,145.92,6.5587]
[1723527119956,20.0,145.99,145.92,7.92926861]
[1723527120124,20.0,145.99,145.93,0.12549]
[1723527120958,26.8498,145.99,145.93,0.12549]
[1723527121446,6.8503,145.98,145.93,0.12549]
[1723527121654,6.8507,145.97,145.93,0.12549]
[1723527122036,6.8503,145.98,145.93,0.12549]
[1723527123022,6.8512,145.96,145.92,6.5587]
[1723527125620,6.8518,145.95,145.91,0.25098]
[1723527125823,6.8529,145.93,145.88,6.3448]
[1723527126027,6.8531,145.92,145.88,6.3448]
[1723527126323,6.8536,145.91,145.81,7.14954935]
[1723527126523,38.473,145.92,145.81,7.14954935]
[1723527127146,31.62,145.94,145.82,32.9909908]
[1723527127348,6.8512,145.96,145.84,31.62]
[1723527127559,20.0,145.99,145.86,37.6302]
[1723527127853,6.8503,145.98,145.88,15.0057]
[1723527128031,26.8508,145.97,145.9,0.12549]
[1723527128236,6.8508,145.97,145.9,0.12549]
[1723527128429,6.8512,145.96,145.9,0.12549]
[1723527130549,6.8518,145.95,145.9,0.12549]
[1723527130960,6.8521,145.94,145.88,15.0057]
[1723527131155,6.8527,145.93,145.88,15.0057]
[1723527131357,31.62,145.94,145.88,15.0057]
[1723527131946,38.4721,145.94,145.88,15.0057]
[1723527132257,31.62,145.96,145.89,1.37081725]
[1723527132442,31.62,145.98,145.9,1.37057334]
[1723527132641,6.8507,145.97,145.9,1.37057334]
[1723527132847,26.8507,145.97,145.9,1.37057334]
[1723527133666,26.8507,145.97,145.91,0.12549]
[1723527134456,6.8512,145.96,145.9,0.25098]
[1723527134646,6.8512,145.96,145.9,1.62158329]
[1723527134857,6.8512,145.96,145.91,0.12549]
[1723527138364,38.4712,145.96,145.9,0.12549]
[1723527138574,38.4721,145.94,145.89,0.12549]
[1723527138870,38.4721,145.94,145.89,0.37647]
[1723527139389,38.4721,145.94,145.88,15.0057]
[1723527139390,6.8536,145.91,145.88,15.0057]
[1723527139678,6.8527,145.93,145.88,15.0057]
[1723527141669,6.8527,145.93,145.86,6.0102]
[1723527141953,33.27626005,145.92,145.85,16.5295]
[1723527142247,6.8539,145.91,145.85,16.5295]
[1723527142469,38.4741,145.9,145.85,16.5295]
[1723527143067,38.4741,145.9,145.82,23.2493]
[1723527143068,31.62,145.9,145.82,23.2493]
[1723527143278,6.8559,145.86,145.82,23.2493]
[1723527143460,31.62,145.86,145.78,23.2607]
[1723527144072,38.4759,145.86,145.78,23.2607]
[1723527145076,31.62,145.88,145.79,1.37169392]
[1723527145383,20.0,145.89,145.8,1.37136215]
[1723527145581,31.62,145.9,145.8,1.37136215]
[1723527145874,6.854,145.9,145.8,1.37136215]
[1723527146073,6.8545,145.89,145.79,51.62]
[1723527146259,6.8545,145.89,145.8,46.62232613]
[1723527146463,6.8545,145.89,145.82,0.12549]
[1723527146675,6.8545,145.89,145.82,1.62232613]
[1723527146886,31.62,145.9,145.82,1.62232613]
[1723527146887,31.62,145.9,145.83,0.25098]
[1723527147357,38.474,145.9,145.83,0.25098]
[1723527147751,31.62,145.9,145.83,0.25098]
[1723527148064,6.8545,145.89,145.83,0.25098]
[1723527148270,6.855,145.88,145.81,20.0]
[1723527148465,38.475,145.88,145.79,21.3713472]
[1723527148778,31.62,145.88,145.8,1.37155107]
[1723527149561,31.62,145.88,145.81,0.50196]
[1723527149764,31.62,145.88,145.81,21.87336381]
[1723527150060,6.8545,145.89,145.81,21.87336381]
[1723527150657,6.8552,145.88,145.81,20.50196]
[1723527151658,6.8552,145.88,145.81,21.87349134]
[1723527152281,6.8552,145.88,145.81,20.50196]
[1723527152581,6.8554,145.87,145.78,23.2607]
[1723527152775,6.8561,145.86,145.79,20.12549]
[1723527152957,6.8561,145.86,145.8,0.25098]
[1723527153379,38.4761,145.86,145.79,20.0]
[1723527153582,31.62,145.86,145.78,23.2607]
[1723527153771,6.8564,145.85,145.78,23.2607]
[1723527153981,1.65626005,145.84,145.78,23.2607]
[1723527154169,1.65626005,145.84,145.79,45.0]
[1723527154368,6.8564,145.85,145.79,45.0]
[1723527154886,31.62,145.86,145.79,45.0]
[1723527155081,33.27626005,145.86,145.79,45.0]
[1723527155289,6.8563,145.85,145.79,45.0]
[1723527155583,48.0565,145.88,145.8,1.21319594]
[1723527155788,20.0,145.87,145.81,0.37647]
[1723527156865,6.8559,145.86,145.8,0.12549]
[1723527157064,8.51216005,145.86,145.8,0.37647]
[1723527157286,8.51216005,145.86,145.8,0.12549]
[1723527157493,6.8555,145.87,145.8,0.12549]
[1723527157990,6.8555,145.87,145.8,0.25098]
[1723527158172,6.8555,145.87,145.81,0.25098]
[1723527158767,31.62,145.92,145.82,0.12549]
[1723527159087,31.62,145.92,145.82,0.25098]
[1723527159286,31.62,145.92,145.83,0.25098]
[1723527159471,31.62,145.92,145.84,0.12549]
[1723527159675,6.8545,145.89,145.84,0.12549]
[1723527159876,6.8545,145.89,145.83,0.25098]
[1723527160072,6.854,145.9,145.84,0.12549]
[1723527160466,31.62,145.92,145.85,6.6007]
[1723527160790,20.0,145.91,145.85,6.6007]
[1723527161869,6.854,145.9,145.85,6.6007]
[1723527162997,6.8545,145.89,145.85,6.6007]
[1723527163491,6.854,145.9,145.85,6.6007]
[1723527164791,34.38602373,145.94,145.86,1.87306084]
[1723527165002,20.0,145.93,145.86,1.87306084]
[1723527165402,26.8529,145.93,145.86,1.87306084]
[1723527166193,6.8531,145.92,145.86,1.87306084]
[1723527167874,6.8531,145.92,145.86,0.50196]
[1723527169701,6.8535,145.91,145.86,0.25098]
[1723527169992,6.8535,145.91,145.85,6.6007]
[1723527170191,6.854,145.9,145.85,6.6007]
[1723527172398,6.8536,145.91,145.85,6.6007]
[1723527175175,6.8541,145.9,145.85,6.6007]
[1723527175491,31.62,145.88,145.81,6.4433]
[1723527176047,6.8545,145.89,145.81,6.4433]
[1723527176692,31.62,145.9,145.81,6.4433]
[1723527176863,6.8559,145.86,145.81,6.4433]
[1723527177063,38.4759,145.86,145.81,6.4433]
[1723527177499,6.8564,145.85,145.81,6.4433]
[1723527178292,6.8564,145.85,145.8,15.6983]
[1723527180170,6.8569,145.84,145.8,15.6983]
[1723527182398,6.8573,145.83,145.78,6.5032]
[1723527183484,6.8577,145.82,145.78,6.5032]
[1723527184194,6.8573,145.83,145.78,6.5032]
[1723527184599,6.8578,145.82,145.78,6.5032]
[1723527184784,6.8587,145.8,145.76,15.8738]
[1723527184989,6.8587,145.8,145.74,6.6108]
[1723527185205,6.8592,145.79,145.74,6.6108]
[1723527185409,31.62,145.82,145.74,6.6108]
[1723527185645,6.859,145.8,145.74,6.6108]
[1723527186706,6.8583,145.81,145.74,6.6108]
[1723527187624,38.4778,145.82,145.75,1.37218552]
[1723527187796,15.5541,145.85,145.76,0.37647]
[1723527188122,15.5541,145.85,145.76,1.74828173]
[1723527188489,15.5541,145.85,145.77,0.12549]
[1723527188806,22.4105,145.85,145.77,1.49729412]
[1723527189001,22.4105,145.85,145.78,0.25098]
[1723527189239,20.0,145.84,145.78,0.25098]